Cogmind - Beta 11.1 @@@ ROGUE MODE // 2022.09.22 @ 23:01:51 Player: DuckBoy Result: Destroyed by Y-54 Guardian with Gatling Laser Performance ------------- Evolutions (3) 1500 Regions Visited (9) 1800 Robots Destroyed (152) 760 Value Destroyed (4506) 4506 Prototype IDs (8) 160 Alien Tech Used (0) 0 Bonus (304) 304 TOTAL SCORE: 9030 Bonus ------- High Alert Combat Kills 340 Aligned with FarCom 300 Friendly Fire -336 Cogmind --------- Core Integrity 0/700 Matter 300/300 Energy 80/100 System Corruption 2% Temperature Cool (12) Movement Rolling (85) Location -7/Lower Caves Parts ------- > --- POWER (2) -------- (None) > --- PROPULSION (2) --- Wheel Armored Wheel > --- UTILITY (5) ------ Improved Signal Interpreter Modified TNC Improved Targeting Computer Microactuators Improved Utility Shielding > --- WEAPON (4) ------- Remote Datajack Chainsword > --- INVENTORY (5) ---- Hacking Suite System Shield System Shield Peak State ------------ > --- POWER ------------ Light Nuclear Core Micro Nuclear Core > --- PROPULSION ------- Armored Treads Armored Wheel > --- UTILITY ---------- Huge Storage Unit Improved Signal Interpreter Modified TNC Improved Utility Shielding Layered Light Armor Plating > --- WEAPON ----------- Lightning Gun Precision Assault Rifle Advanced Assault Cannon Advanced Assault Cannon > --- INVENTORY -------- Light Nuclear Core Armored Treads Advanced Treads Armored Wheel Gravmag System Gravmag System Advanced Heat Sink Cooling System High-capacity Matter Pod Layered Light Armor Plating Hacking Suite Hacking Suite Hacking Suite System Shield System Shield System Shield System Shield Authchip [R/Combat] Authchip [R/Combat] Authchip [R/Combat] Trap Extractor Splice Drone Bay Lightning Gun Advanced Assault Cannon Remote Datajack [Rating: 54] Favorites ----------- Power Light Nuclear Core Engine Cooled Ion Engine Power Core Light Nuclear Core Propulsion Armored Wheel Treads Armored Treads Leg Aluminum Leg Wheel Armored Wheel Hover Unit Gravmag System Utility Huge Storage Unit Device Cooling System Storage Huge Storage Unit Processor Modified TNC Protection Medium Armor Plating Weapon Lightning Gun Energy Gun Lightning Gun Energy Cannon Advanced Beam Cannon Ballistic Gun High-powered Shotgun Ballistic Cannon Advanced Assault Cannon Launcher Heavy Missile Launcher Special Weapon Remote Datajack Slashing Weapon Chainsword Special Melee Weapon Datajack Build | -11 -10 -10 -9 -9 -9 -8 -8 -7 -7 ------- Run | Scr Mat Min Mat Min Exi Min Mat Fac Low Slots Evolved 6 | . . . 2 . . . 2 2 . Power 1 | . . . . . . . . 1 . Propulsion . | . . . . . . . . . . Utility 3 | . . . . . . . 2 1 . Weapon 2 | . . . 2 . . . . . . Parts Attached 140 | 6 4 7 22 3 16 . 29 48 5 Power 20 | 1 1 1 5 . 1 . 4 7 . Engine 12 | 1 1 1 5 . 1 . 2 1 . Core 8 | . . . . . . . 2 6 . Reactor . | . . . . . . . . . . Propulsion 21 | 2 . 4 3 . . . 6 3 3 Treads 5 | 2 . . . . . . 2 1 . Leg 3 | . . 2 . . . . 1 . . Wheel 11 | . . 2 3 . . . 3 1 2 Hover 2 | . . . . . . . . 1 1 Flight . | . . . . . . . . . . Utility 42 | 1 1 1 6 2 8 . 8 13 2 Device 14 | . . 1 3 1 1 . 3 4 1 Storage 5 | 1 1 . 1 . 1 . . 1 . Processor 3 | . . . . . 1 . . 1 1 Hackware . | . . . . . . . . . . Protection 20 | . . . 2 1 5 . 5 7 . Artifact . | . . . . . . . . . . Weapon 57 | 2 2 1 8 1 7 . 11 25 . Energy Gun 19 | 2 1 . 2 . . . 5 9 . Energy Cannon 4 | . 1 1 1 . . . 1 . . Ballistic Gun 11 | . . . 4 . 5 . 1 1 . Ballistic Cannon 9 | . . . . . . . 1 8 . Launcher 10 | . . . . 1 2 . 3 4 . Special Weapon 2 | . . . . . . . . 2 . Impact Weapon . | . . . . . . . . . . Slashing Weapon 1 | . . . . . . . . 1 . Piercing Weapon . | . . . . . . . . . . Special Melee Weapon 1 | . . . 1 . . . . . . Unidentified Prototypes 8 | . 1 . 1 1 3 . 1 1 . Parts Lost 54 | . 2 1 5 1 6 . 12 25 2 Power 13 | . 1 . 3 . 1 . 2 6 . Propulsion 7 | . . 1 . . 1 . . 3 2 Utility 12 | . . . . . 3 . 4 5 . Weapon 22 | . 1 . 2 1 1 . 6 11 . Highest Loss Streak 14 | . 2 1 2 1 5 . 4 14 2 To Critical Strikes 2 | . . . . . 1 . . 1 . Average Slot Usage (%) 91 | . 83 96 97 98 91 77 91 94 55 Engine 6 | . 13 14 10 11 10 11 5 . . Core 4 | . . . . . . . 3 12 . Treads 5 | . 28 13 . . . . 7 6 . Leg 1 | . . 8 . . . . 1 . . Wheel 10 | . . 5 21 22 18 11 8 6 1 Device 6 | . . 10 9 1 . . 9 6 6 Storage 8 | . 14 14 11 11 9 11 9 6 . Processor 8 | . . . . . 1 11 9 14 22 Protection 6 | . . . 1 9 10 . 6 8 7 Energy Gun 9 | . 16 14 15 . . . 9 10 . Energy Cannon 5 | . 11 14 11 11 6 . 5 . . Ballistic Gun 8 | . . . 13 22 26 22 8 2 . Ballistic Cannon 3 | . . . . . . . 1 8 . Launcher 3 | . . . . 5 7 11 4 3 . Naked Turns . | . . . . . . . . . . Heaviest Build 123 | 12 29 30 106 109 111 102 118 123 10 Greatest Support 42 | 40 40 40 22 22 22 12 42 20 22 Greatest Overweight (x) 11 | . . 2 4 4 9 8 11 10 3 Average Overweight (x) 5 | . . . 3 4 4 8 8 7 1 Largest Inventory Capacity 25 | 8 15 15 25 25 25 25 25 25 5 Average Capacity 22 | 7 10 15 24 25 22 25 25 24 5 Most Carried 25 | 1 8 8 25 25 25 24 25 25 5 Average Carried 20 | . 6 7 22 24 20 24 23 23 4 Final Capacity 25 | 8 15 15 25 25 25 25 25 5 5 Final Carried 25 | 1 7 8 25 24 24 24 25 4 3 Class Distribution -------------------- 36% | Mutant 27% | Tank 22% | Skirmisher 6% | Gunner 4% | Scavenger-Gunner Dominant Class ---------------- Mutant | -10/Materials Mutant | -10/Mines Gunner | -9/Materials Tank | -9/Mines Tank | -9/Exiles Skirmisher | -8/Mines Tank | -8/Materials Skirmisher | -7/Factory Mutant | -7/Lower Caves Resources | -11 -10 -10 -9 -9 -9 -8 -8 -7 -7 ----------- Run | Scr Mat Min Mat Min Exi Min Mat Fac Low Matter Collected 3569 | 227 63 112 331 102 455 22 797 1379 81 Remotely 510 | . . . . . . . 510 . . Salvage Created 5445 | . 243 275 1075 91 16 . 1992 1520 233 Parts 314 | . 15 21 88 9 . . 94 81 6 Haulers Intercepted 6 | . . . 5 . . . 1 . . Recyclers Shooed 3 | . . . . . . . 1 2 . Parts Field Recycled . | . . . . . . . . . . Retrieved Matter . | . . . . . . . . . . Parts Self-Destructed 3 | . . . . . . . . . 3 Prevented . | . . . . . . . . . . Kills | -11 -10 -10 -9 -9 -9 -8 -8 -7 -7 ------- Run | Scr Mat Min Mat Min Exi Min Mat Fac Low Combat Hostiles Destroyed 117 | . 6 11 24 5 7 . 33 29 2 Melee 5 | . . 1 . . . . 2 . 2 Guns 63 | . 3 3 18 4 1 . 22 12 . Cannons 36 | . 3 6 6 . . . 5 16 . AOE 10 | . . . . 1 6 . 2 1 . Classes Destroyed 17 | . 3 3 4 1 2 . . 3 1 Worker 7 | . . 2 2 . . . 1 2 . Builder 4 | . . . 1 . . . 3 . . Tunneler 2 | . . 1 . . . . 1 . . Hauler 6 | . . . 5 . . . 1 . . Recycler 7 | . 2 . . . . . 2 3 . Operator 4 | . 1 . 1 . . . . 2 . Watcher 10 | . . . 3 . . . 4 3 . Swarmer 35 | . 6 9 9 3 . . . 8 . Grunt 42 | . . 2 8 1 . . 22 7 2 Brawler 1 | . . . . . . . . 1 . Duelist 5 | . . . . 1 . . 2 2 . Sentry 18 | . . . 7 . . . 9 2 . Hunter 2 | . . . . . . . . 2 . Programmer 7 | . . . . . . . . 7 . Zionite 1 | . . . . . 1 . . . . Decomposer 3 | . . . . . . . . . 3 Samaritan 2 | . . . . . . . . . 2 Assembled 7 | . . . . . 7 . . . . Best Kill Streak 17 | . 5 7 7 3 6 . 17 5 2 Combat Bots Only 11 | . 3 6 6 3 6 . 11 5 2 Max Kills in Single Turn 4 | . 1 2 2 2 4 . 4 2 1 Gunslinging . | . . . . . . . . . . Exploded 4 | . . . . 1 4 . 2 1 . Melee 1 | . . 1 . . . . 1 . 1 Uniques/NPCs Destroyed 1 | . . . . . 1 . . . . 8R-AWN (-9/Exiles) Combat | -11 -10 -10 -9 -9 -9 -8 -8 -7 -7 -------- Run | Scr Mat Min Mat Min Exi Min Mat Fac Low Damage Taken 8063 | . 269 330 863 82 1022 . 1657 3570 270 Core 1217 | . 34 78 148 . 105 . 145 558 149 Absorbed by Shields . | . . . . . . . . . . Redirected to Shielding 16 | . . . . . . . . 16 . Regen/Repaired (Parts) 318 | . . . 79 . . . 180 59 . Core Remaining (%) 66 | 100 . 55 . . . 36 73 . . Volleys Fired 304 | . 21 19 48 8 29 . 69 110 . Largest 4 | . 2 2 4 3 4 . 4 4 . Hottest 234 | . 118 118 218 118 100 . 234 197 . Shots Fired 819 | . 37 39 172 14 88 . 242 227 . Gun 555 | . 18 19 124 6 80 . 187 121 . Cannon 233 | . 19 20 48 5 . . 48 93 . Launcher 26 | . . . . 3 8 . 7 8 . Special 5 | . . . . . . . . 5 . Kinetic 408 | . . . 68 6 80 . 113 141 . Thermal 231 | . 23 39 104 5 . . 60 . . Explosive 26 | . . . . 3 8 . 7 8 . Electromagnetic 149 | . 14 . . . . . 62 73 . Robot Hit Streak 23 | . 4 5 12 3 6 . 23 15 . Robot Miss Streak 7 | . 7 3 7 3 7 . 6 6 . Penetration Max . | . . . . . . . . . . Secondary Targets . | . . . . . . . . . . Autonomous 80 | . . . . . 3 . 77 . . Shots Hit Robots 503 | . 15 21 110 7 51 . 156 130 13 Core Hits 301 | . 10 15 97 7 29 . 75 63 5 Critical Kills 2 | . . 1 . . . . 1 . . Critical Parts Destroyed 1 | . . . . . . . 1 . . Critical Strikes 16 | . . 3 1 . . . 5 7 . Burn 5 | . . 2 1 . . . 2 . . Meltdown 2 | . . 1 . . . . 1 . . Destroy 1 | . . . . . . . 1 . . Blast 8 | . . . . . . . 1 7 . Melee Attacks 15 | . . . . . . . . . 15 Impact . | . . . . . . . . . . Slashing 15 | . . . . . . . . . 15 Piercing . | . . . . . . . . . . Sneak Attacks 6 | . . . . . . . . . 6 Combat Hostiles . | . . . . . . . . . . Follow-up Attacks . | . . . . . . . . . . Damage Inflicted 12336 | . 287 455 1614 217 1408 . 4370 3315 670 Guns 7051 | . 122 122 1045 70 863 . 3155 1674 . Cannons 2932 | . 165 325 569 60 . . 549 1264 . Explosions 1639 | . . . . 87 545 . 650 357 . Melee 670 | . . . . . . . . . 670 Ramming 44 | . . 8 . . . . 16 20 . Kinetic 5567 | . . . 360 70 863 . 2234 2040 . Thermal 2897 | . 202 447 1254 60 . . 767 167 . Explosive 1431 | . . . . 87 545 . 609 190 . Electromagnetic 1727 | . 85 . . . . . 744 898 . Impact . | . . . . . . . . . . Slashing 670 | . . . . . . . . . 670 Piercing . | . . . . . . . . . . Highest Corruption 2 | . 2 2 . . . . . 2 2 Average Corruption 1 | . 2 2 . . . . . 1 2 Corruption Purged . | . . . . . . . . . . Corruption Blocked . | . . . . . . . . . . Effects 33 | . 1 16 . . . . . 8 8 Message Errors 6 | . . 1 . . . . . 3 2 Matter Fused 9 | . . 4 . . . . . 1 4 Heat Flow Errors 7 | . . 4 . . . . . 2 1 Energy Discharges 4 | . . 3 . . . . . 1 . Data Loss (minor) 4 | . 1 2 . . . . . . 1 Data Loss (major) 1 | . . 1 . . . . . . . Misfires 2 | . . 1 . . . . . 1 . Overload Shots . | . . . . . . . . . . Overflow Damage 237 | . . . 3 . 26 . 21 35 152 Projectiles 38 | . . . 3 . . . . 35 . Explosions 47 | . . . . . 26 . 21 . . Melee 152 | . . . . . . . . . 152 Knockbacks 12 | . . . . . . . 1 11 . Impact . | . . . . . . . . . . Kinetic 12 | . . . . . . . 1 11 . Secondary . | . . . . . . . . . . Self-Inflicted Damage 219 | . . . . 39 . . 49 131 . Shots 6 | . . . . 1 . . 1 4 . Rammed 11 | . . 2 . . . . 3 6 . Targets Rammed 14 | . . 3 . . . . 5 6 . Kicked . | . . . . . . . . . . Crushed 3 | . . 1 . . . . 2 . . Highest Temperature 450 | . 202 328 383 104 285 . 401 450 209 Average Temperature 128 | . 76 126 127 48 137 . 129 141 115 Received Heat Transfer 2373 | . . 114 291 . . . 801 1029 138 Effects 25 | . 1 3 2 . 1 . 5 12 1 Shutdowns 4 | . . . 1 . . . 1 2 . Energy Bleed 5 | . 1 1 1 . . . 1 . 1 Interference 13 | . . 1 . . 1 . 2 9 . Matter Decay 1 | . . . . . . . . 1 . Damage (minor) 2 | . . 1 . . . . 1 . . Siege Activations . | . . . . . . . . . . Robots Corrupted . | . . . . . . . . . . Combat Hostiles . | . . . . . . . . . . Parts Fried 12 | . . . . . . . 6 6 . Impact Corruptions . | . . . . . . . . . . Robots Melted 3 | . . 1 . . . . 2 . . Combat Hostiles 3 | . . 1 . . . . 2 . . Parts Melted 9 | . . 4 2 . . . 2 . 1 Heat Transferred 5484 | . 407 1110 2102 111 . . 1604 150 . Parts Sabotaged . | . . . . . . . . . . Parts Stolen . | . . . . . . . . . . Parts Stripped . | . . . . . . . . . . Power Chain Reactions 3 | . . . . . . . 1 2 . Missiles Intercepted . | . . . . . . . . . . Alert | -11 -10 -10 -9 -9 -9 -8 -8 -7 -7 ------- Run | Scr Mat Min Mat Min Exi Min Mat Fac Low Peak Influence 758 | . 165 305 360 260 . . 758 742 . Initial 328 | . . . 1 69 . . . 328 . Average 240 | . 86 110 222 146 . . 384 224 . Maximum Alert Level 3 | . . 1 1 1 . . 3 3 . Low Security (%) 52 | 100 100 83 28 67 . 100 37 54 . Level 1 27 | . . 16 71 32 . . 2 35 . Level 2 14 | . . . . . . . 42 9 . Level 3 5 | . . . . . . . 17 1 . Level 4 . | . . . . . . . . . . Level 5 . | . . . . . . . . . . High Security . | . . . . . . . . . . Max Security . | . . . . . . . . . . Squads Dispatched 28 | . 2 . 4 . . . 5 17 . Investigation 7 | . . . 3 . . . 2 2 . Extermination 6 | . . . . . . . . 6 . Reinforcement 8 | . 2 . 1 . . . 3 2 . Assault 1 | . . . . . . . . 1 . Garrison 6 | . . . . . . . . 6 . Intercept . | . . . . . . . . . . Searches Triggered . | . . . . . . . . . . Construction Impeded 1 | . . . . . . . 1 . . Haulers Reinforced . | . . . . . . . . . . Active Scanning Responses . | . . . . . . . . . . Cargo Convoy Interrupts . | . . . . . . . . . . Stealth | -11 -10 -10 -9 -9 -9 -8 -8 -7 -7 --------- Run | Scr Mat Min Mat Min Exi Min Mat Fac Low Distress Signals 7 | . 1 . 2 . . . 2 2 . Communications Jammed . | . . . . . . . . . . Distress Signals . | . . . . . . . . . . Times Spotted 176 | . 11 12 32 6 12 . 45 55 3 Peak Tracking Total 11 | . 5 4 7 3 9 . 5 11 2 Tactical Retreats 19 | . . 1 4 1 4 . 2 7 . Traps | -11 -10 -10 -9 -9 -9 -8 -8 -7 -7 ------- Run | Scr Mat Min Mat Min Exi Min Mat Fac Low Traps Triggered 4 | . 1 . 1 . . . . 2 . Indirectly . | . . . . . . . . . . Trap Hack Attempts 52 | . . . 52 . . . . . . Triggered . | . . . . . . . . . . Disarmed 1 | . . . 1 . . . . . . Reprogrammed 6 | . . . 6 . . . . . . Reused 3 | . . . . . . . . 3 . Traps Extracted 4 | . . . 4 . . . . . . Installed 4 | . . . . . . . . 4 . Triggered 4 | . . . . . . . . 3 1 Most Traps Carried 4 | . . . 4 4 4 4 4 4 . Machines | -11 -10 -10 -9 -9 -9 -8 -8 -7 -7 ---------- Run | Scr Mat Min Mat Min Exi Min Mat Fac Low Machines Disabled 17 | . . . 1 . 4 . 5 7 . Max in Single Turn 1 | . . . 1 . 1 . 1 1 . Garrison Access 1 | . . . . . . . . 1 . Machines Sabotaged . | . . . . . . . . . . Garrisons Compromised . | . . . . . . . . . . Overloaded Fab Kills . | . . . . . . . . . . Hacking | -11 -10 -10 -9 -9 -9 -8 -8 -7 -7 --------- Run | Scr Mat Min Mat Min Exi Min Mat Fac Low Machines Accessed 29 | . 2 . 8 1 1 . 10 7 . Terminals 15 | . 2 . 5 . . . 7 1 . Fabricators . | . . . . . . . . . . Repair Stations 4 | . . . 1 . . . 2 1 . Recycling Units 2 | . . . . . . . . 2 . Scanalyzers 4 | . . . 2 . . . 1 1 . Garrison Access 2 | . . . . . . . . 2 . Total Hacks 85 | . 4 . 27 1 4 . 28 21 . Successful 52 | . 2 . 16 1 4 . 18 11 . Failed 33 | . 2 . 11 . . . 10 10 . Catastrophic 2 | . . . . . . . . 2 . Database Lockouts . | . . . . . . . . . . Manual 33 | . 2 . 8 . 1 . 9 13 . Terminals 45 | . 4 . 17 . . . 16 8 . Fabricators . | . . . . . . . . . . Repair Stations 8 | . . . 2 . . . 4 2 . Recycling Units 6 | . . . . . . . . 6 . Scanalyzers 18 | . . . 8 . . . 8 2 . Garrison Access 3 | . . . . . . . . 3 . Terminal Hacks 20 | . 1 . 7 1 4 . 6 1 . Record 4 | . . . . . 4 . . . . Part Schematic 3 | . . . 1 . . . 1 1 . Robot Analysis 1 | . . . 1 . . . . . . Open Door 1 | . . . . 1 . . . . . Branch Access Points 1 | . . . . . . . 1 . . Emergency Access Points 1 | . . . . . . . 1 . . Alert Level 2 | . . . 1 . . . 1 . . Unreport Threat 1 | . . . 1 . . . . . . Locate Traps 5 | . 1 . 2 . . . 2 . . Hauler Manifests 1 | . . . 1 . . . . . . Fabricator Hacks . | . . . . . . . . . . Repair Station Hacks 8 | . . . 2 . . . 4 2 . Scan Component 4 | . . . 1 . . . 2 1 . Repair 4 | . . . 1 . . . 2 1 . Recycling Unit Hacks 1 | . . . . . . . . 1 . Report Inventory 1 | . . . . . . . . 1 . Scanalyzer 13 | . . . 5 . . . 7 1 . Insert Component 8 | . . . 3 . . . 4 1 . Analyze 5 | . . . 2 . . . 3 . . Garrison Access Hacks 1 | . . . . . . . . 1 . Seal Access 1 | . . . . . . . . 1 . Unauthorized Hacks 9 | . 1 . 2 . . . 1 5 . Terminals 6 | . 1 . 2 . . . 1 2 . Assimilate 1 | . . . . . . . . 1 . Botnet 5 | . 1 . 2 . . . 1 1 . Fabricators . | . . . . . . . . . . Repair Stations . | . . . . . . . . . . Recycling Units 3 | . . . . . . . . 3 . Reject 1 | . . . . . . . . 1 . Recyclers 1 | . . . . . . . . 1 . Mask 1 | . . . . . . . . 1 . Scanalyzers . | . . . . . . . . . . Garrison Access . | . . . . . . . . . . Data Cores Recovered . | . . . . . . . . . . Used . | . . . . . . . . . . Hacking Detections 23 | . 2 . 8 . . . 9 4 . Full Trace Events 9 | . . . 4 . . . 3 2 . Feedback Events . | . . . . . . . . . . Feedback Blocked . | . . . . . . . . . . Robot Schematics Acquired . | . . . . . . . . . . Robots Built . | . . . . . . . . . . Authchips . | . . . . . . . . . . Time . | . . . . . . . . . . Total Robot Build Rating . | . . . . . . . . . . Part Schematics Acquired 8 | . . . 3 . . . 4 1 . Parts Built . | . . . . . . . . . . Authchips . | . . . . . . . . . . Time . | . . . . . . . . . . Total Part Build Rating . | . . . . . . . . . . Parts Repaired 4 | . . . 1 . . . 2 1 . Time 140 | . . . 32 . . . 64 44 . Parts Recycled . | . . . . . . . . . . Recycled Matter . | . . . . . . . . . . Retrieved Matter . | . . . . . . . . . . Retrieved Components . | . . . . . . . . . . Parts Scanalyzed 7 | . . . 2 . . . 4 1 . Part Schematics Acquired 5 | . . . 2 . . . 3 . . Parts Damaged . | . . . . . . . . . . Bothacking | -11 -10 -10 -9 -9 -9 -8 -8 -7 -7 ------------ Run | Scr Mat Min Mat Min Exi Min Mat Fac Low Used RIF Installer . | . . . . . . . . . . Robots Hacked 4 | . . . . . . . . 4 . Non-combat 4 | . . . . . . . . 4 . Combat . | . . . . . . . . . . Robot Hacks Applied 4 | . . . . . . . . 4 . no_distress 1 | . . . . . . . . 1 . find_chute 1 | . . . . . . . . 1 . find_recycling 2 | . . . . . . . . 2 . Relay Couplers Released . | . . . . . . . . . . Fabnet Peak Effective % . | . . . . . . . . . . Robots Rewired . | . . . . . . . . . . Allies Hacked . | . . . . . . . . . . Hacks Repelled . | . . . . . . . . . . Allies | -11 -10 -10 -9 -9 -9 -8 -8 -7 -7 -------- Run | Scr Mat Min Mat Min Exi Min Mat Fac Low Total Allies . | . . . . . . . . . . Largest Group . | . . . . . . . . . . Highest-Rated Group . | . . . . . . . . . . Highest-Rated Ally . | . . . . . . . . . . Total Orders 1 | . . . . 1 . . . . . EXPLORE 1 | . . . . 1 . . . . . Ally Attacks 1 | . . . . 1 . . . . . Total Damage 4 | . . . . 4 . . . . . Kills . | . . . . . . . . . . Allies Corrupted . | . . . . . . . . . . Allies Melted . | . . . . . . . . . . Intel | -11 -10 -10 -9 -9 -9 -8 -8 -7 -7 ------- Run | Scr Mat Min Mat Min Exi Min Mat Fac Low Robot Analysis Total 1 | . . . 1 . . . . . . Derelict Logs Recovered 3 | . . 2 . 1 . . . . . Drone Launches 1 | . . . . 1 . . . . . Drone Recoveries 1 | . . . . 1 . . . . . Exploration | -11 -10 -10 -9 -9 -9 -8 -8 -7 -7 ------------- Run | Scr Mat Min Mat Min Exi Min Mat Fac Low Turns Passed 13643 | 72 423 1194 1639 463 1733 232 3042 4230 615 Spaces Moved 6383 | 40 207 626 881 260 964 111 1169 1722 403 Core 225 | 1 . . . . . . . . 224 Treads 623 | 39 207 365 . . . . 11 1 . Legs 29 | . . 29 . . . . . . . Wheels 5219 | . . 232 881 260 964 111 1158 1587 26 Hover 287 | . . . . . . . . 134 153 Flight . | . . . . . . . . . . Fastest Speed 50 | 50 160 95 95 145 85 210 210 65 56 Average Speed 181 | 157 160 171 140 145 158 210 219 207 143 Slowest Speed 317 | 160 160 260 145 145 225 210 317 240 200 Overloaded Moves . | . . . . . . . . . . Propulsion Burnouts . | . . . . . . . . . . Robots Hopped . | . . . . . . . . . . Cave-ins Triggered . | . . . . . . . . . . Exploration Rate (%) 56 | 4 53 97 54 70 91 38 82 31 48 Regions Visited 9 Branch Regions 5 Pre-discovered Areas 1 | . . . . . 1 . . . . Known Exits Taken 1 | . . . . . . . . 1 . Unknown Exits Taken 8 | 1 1 1 1 1 1 1 1 . . Scrap Searched 4 | . . 1 . 1 . 1 . . 1 Spaces Dug 39 | . . . . . . . 8 31 . Terrain Destroyed 316 | . . . . 22 41 . 134 119 . Melee . | . . . . . . . . . . Projectile 63 | . . . . 1 . . 44 18 . AOE 253 | . . . . 21 41 . 90 101 . Terrain Rammed . | . . . . . . . . . . Walls Destroyed . | . . . . . . . . . . Machines Disabled . | . . . . . . . . . . Actions | -11 -10 -10 -9 -9 -9 -8 -8 -7 -7 --------- Run | Scr Mat Min Mat Min Exi Min Mat Fac Low Total 7880 | 46 261 700 1191 334 1119 111 1508 2186 424 Wait 732 | . 20 41 122 61 61 1 192 234 . Move 6374 | 39 206 625 880 259 963 110 1168 1721 403 Hop . | . . . . . . . . . . Pick Up 144 | 1 8 1 41 1 32 . 26 33 1 Fast Attach 47 | 6 2 5 4 1 7 . 6 14 2 Attach 45 | . 1 . 6 1 6 . 16 13 2 Detach 6 | . . . 1 . 2 . 2 1 . Swap 49 | . 1 2 13 1 3 . 7 21 1 Drop 94 | . 2 4 24 2 16 . 17 29 . Fire 304 | . 21 19 48 8 29 . 69 110 . Melee 15 | . . . . . . . . . 15 Ram 3 | . . . . . . . . 3 . Kick . | . . . . . . . . . . Crush 11 | . . 3 . . . . 5 3 . Escape Stasis . | . . . . . . . . . . Rewire . | . . . . . . . . . . Trap 56 | . . . 52 . . . . 4 . Miscellaneous . | . . . . . . . . . . Route ------- -11/Scrapyard -10/Materials (discovered 2 exits: *Mat / [*Min]) -10/Mines (discovered 2 exits: *Mat x2) -9/Materials (discovered 3 exits: *Mat x2 / *Min) -9/Mines (discovered 2 exits: *Mat / *Exi) -9/Exiles -8/Mines -8/Materials (discovered 2 exits: *Fac x2) -7/Factory (discovered 2 exits: *Sto / *Low) -7/Lower Caves History --------- Turn | Location | Event 15 | -11/Scrapyard | Discovered new exit (range 16) 73 | -11/Scrapyard | Entered Materials 223 | -10/Materials | Discovered new exit (range 16) 306 | -10/Materials | Build established: Mutant 473 | -10/Materials | Discovered new exit (range 15) 496 | -10/Materials | Entered Mines 684 | -10/Mines | Discovered new exit (range 15) 855 | -10/Mines | Found a hidden stash of uninstalled traps 915 | -10/Mines | Discovered new exit (range 5) 1570 | -10/Mines | Learned Materials stockpile data 1677 | -10/Mines | Build established: Scavenger-Mutant 1690 | -10/Mines | Entered Materials 1690 | -9/Materials | Evolved 2 slots: Weapon x2 2075 | -9/Materials | Discovered new exit (range 7) 2117 | -9/Materials | Build established: Scavenger-Gunner 2321 | -9/Materials | Discovered new exit (range 15) 2605 | -9/Materials | Build established: Gunner 2669 | -9/Materials | Repaired Arm. Wheel 3227 | -9/Materials | Discovered new exit (range 10) 3329 | -9/Materials | Entered Mines 3335 | -9/Mines | Found the Drone Emporium 3351 | -9/Mines | Found Prototype Device 3351 | -9/Mines | Identified Splice Drone Bay 3403 | -9/Mines | Learned Materials terminal intel 3480 | -9/Mines | Discovered new exit (range 10) 3783 | -9/Mines | Deemed a non-threat by the Exiles lab entrance 3785 | -9/Mines | Discovered new exit (range 5) 3789 | -9/Mines | Build established: Tank 3792 | -9/Mines | Entered Exiles 3814 | -9/Exiles | Discovered new exit (range 15) 3829 | -9/Exiles | Met 8R-AWN 3914 | -9/Exiles | Met EX-HEX 4012 | -9/Exiles | Met EX-DEC 4037 | -9/Exiles | Visited The Gauntlet 4214 | -9/Exiles | Learned location of Zion (-7) 4508 | -9/Exiles | Met EX-BIN 4619 | -9/Exiles | Aligned with FarCom system 4620 | -9/Exiles | Given EX-Vault access code 4655 | -9/Exiles | Opened EX-Vault 4659 | -9/Exiles | Found Prototype Ballistic Gun 4662 | -9/Exiles | Found Prototype Device 4662 | -9/Exiles | Identified PSU Rigger 4705 | -9/Exiles | Warned to stay clear of 0b10 Research branches 4785 | -9/Exiles | Identified AWS/Gauss 4883 | -9/Exiles | Attacked by the Exiles 4926 | -9/Exiles | Core integrity fell below 50% 4979 | -9/Exiles | Destroyed 8R-AWN 4988 | -9/Exiles | Lost 5 parts (1n3u1w) 5250 | -9/Exiles | Found Prototype Processor 5250 | -9/Exiles | Identified Modified TNC 5525 | -9/Exiles | Stole three prototypes: AWS/Gauss, Modified TNC, PSU Rigger 5525 | -9/Exiles | Entered Mines 5730 | -8/Mines | Discovered new exit (range 14) 5757 | -8/Mines | Entered Materials 5757 | -8/Materials | Evolved 2 slots: Utility x2 5758 | -8/Materials | Loaded intel: 11 terminal locations 5795 | -8/Materials | Build established: Skirmisher 6216 | -8/Materials | Build established: Tank 6797 | -8/Materials | Discovered new exit (range 16) 6957 | -8/Materials | Build established: Skirmisher 6994 | -8/Materials | Destroyed 11 combat bots 7025 | -8/Materials | Repaired Arm. Wheel 7167 | -8/Materials | Repaired Med. Armor Plating 7392 | -8/Materials | Build established: Tank 7639 | -8/Materials | Lost 4 parts (1p1u2w) 7893 | -8/Materials | Build established: Mutant 8288 | -8/Materials | Discovered new exit (range 15) 8797 | -8/Materials | Build established: Skirmisher 8799 | -8/Materials | Entered Factory 8799 | -7/Factory | Evolved 2 slots: Power x1, Utility x1 8800 | -7/Factory | Identified exit to Storage 9446 | -7/Factory | Repaired Lightning Gun 10583 | -7/Factory | Build established: Mutant 10742 | -7/Factory | Discovered new exit (range 3) 10746 | -7/Factory | Identified exit to Lower Caves 11079 | -7/Factory | Build established: Skirmisher 11604 | -7/Factory | Build established: Tank 12195 | -7/Factory | Build established: Mutant 12528 | -7/Factory | Garrison activated, responded to threat 12730 | -7/Factory | Lost 4 parts (1p1u2w) 12799 | -7/Factory | First assault squad dispatched 12898 | -7/Factory | Core integrity fell below 50% 12969 | -7/Factory | Lost 14 parts (2p3n3u6w) 13029 | -7/Factory | Entered Lower Caves 13147 | -7/Lower Caves | Core integrity fell below 20% 13620 | -7/Lower Caves | Attracted the attention of an 0b10 checkpoint 13644 | -7/Lower Caves | Destroyed by Y-54 Guardian with Gatling Laser Last Messages --------------- 13542_ Sneak attack on EH-VUP(S). 13542_ EH-VUP(S) destroyed. 13544_ Acquired 6 matter. 13545_ System corrupted: Matter fused (-10). 13545_ Acquired 10 matter. 13565_ System corrupted: Matter fused (-6). 13568_ UX-4C0(k) breaks down the debris. 13577_ 8Y-9RF(k) breaks down the debris. 13584_ UX-4C0(k) breaks down the debris. 13590_ Acquired 4 matter. 13597_ 8Y-9RF(k) breaks down the debris. 13604_ Acquired 2 matter. 13620_ Y-54 Guardian: "INTERCEPTING UNREGISTERED DERELICT." 13622_ Acquired 4 matter. 13623_ Acquired 3 matter. 13624_ Acquired 5 matter. 13625_ Acquired 2 matter. 13627_ Acquired 3 matter. 13631_ Acquired 2 matter. 13637_ Acquired 1 matter. Map ----- +----------------------------------------------------+ | ?????????????????# ####### # | | ?????????????????## ####### # | | ??????????????????####### # | | ????####???????????????## # #### | | ????#%%##?????????????## ######### ##??? | | ???## ###?????????### ##???????## ##???? | | #### % ##???????## ##?????????# #???## | | % ##?###### ##??????????## ##??## | | % % ### ######????????????####???# | | #????########?#####??????# | | ### %% %##### #???## ### #??????# | | ##?##% % ##???# #??## ##?????## | | ###???## ####?# #??# ##?????## | | ##??????#### ### ### #??# ##????# | | #??????##### ## #??# # ###??# | | #??##### k k %#??# ######## ##?# | | #### ##?# #??????## ### | | #?# #???????#### | | % ## % ### ####???????## | | % #### ## ## ##???????# | | # ##??# % # %##??????## ### | | ###### #??## % #???????# ##?# | | ?????# #??# ##?????# ##??# | | ????## ##?# % % % ####??# #???# | | ??### ### ##?## #??# | | ### % ## ###@ % % % ##?# ##?# | | # % #### ###?# ### % #?##???# | | % ##??####???# #### %% #??????# | | ##??????????#%#### #?????# | | ##???????????# #?# % ##????# | | # ##????????????# #?# % ##?????# | | #### #?????????????# ###% % ##?????## | | ???### #?????????????#% % % #??????### | | ?????######?????????????# ###????????### | | ????????????????????????# #### ##????????????? | | ????????????????????????# #??## ##?????????????? | | ????????????????????????# Y#???####??????????????? | | ????????????????????????# #?????????????????????? | | ????????????????????????# #?????????????????????? | | ????????????????????????# ?????????????????????? | | ???????????????????????? ?????????????????????? | | ???????????????????????? ????????????????????? | | ???????????????????????? ????????????????????? | | ??????????????????????? ???????????????????? | | ??????????????????????? ???????????????????? | | ??????????????????????? #??????????????????? | | ??????????????????????? ??????????????????? | | ??????????????????????## % ??????????????????? | | ???????????????????????## ?????????????????? | | ????????????????????????? ???????????????????? | +----------------------------------------------------+ Best States ------------- Heat Dissipation 56 Energy Generation 25 Energy Capacity 350 Matter Stores 300 Matter Capacity 300 Sight Range 16 Robot Scan Range 15 Terrain Scan Density 10 Armor Coverage 450 Utility Shielding 66 Melee Speed Boost 20 Evasion (%) 53 Targeting Accuracy 6 Recoil Reduction 2 Authchip Count 3 Trap Extractor Capacity 4 Item Schematics ----------------- Huge Storage Unit | -9/Materials | Scanalyzed Lrg. Battery | -9/Materials | Hacked Hacking Suite | -9/Materials | Scanalyzed System Shield | -8/Materials | Hacked Imp. Sensor Array | -8/Materials | Scanalyzed Imp. Signal Interpreter | -8/Materials | Scanalyzed Hrd. Medium Armor Plating | -8/Materials | Scanalyzed Arc Projector | -7/Factory | Hacked Robot Schematics ------------------ None Fabricated ------------ Nothing Alien Tech Used ----------------- None Achievements -------------- None Challenges ------------ None Game ------ Seed FusionLinkedCharge Manual? 0 Play Time 01:56:37 Cumulative 135.7 hours Start 2022.09.22 @ 20:56:36 End 2022.09.22 @ 23:01:51 Sessions 1 Manual Loads 0 Difficulty Rogue Special Mode None Game No. 109 Rogue 106 Adventurer 3 Explorer 0 Win Type - Total 1 Types 1/0/0/0/0/0/0/0/0 Lore% 54 Gallery% 53 Achievement% 48 Wizard Run 0 Options --------- ASCII 0 Keyboard 0 Movement Numpad Keybinds 0 Fullscreen 1 Font 18/SmallcapsGlow Map View 76x50 Tactical HUD 1 Map Filters NONE Filters NONE Steam 1 RUN: 3bed4201-0add-4895-8c07-f7597e962052